Workbook

Sheet 封面
A3: 文档编号：
A11: 质量保障平台v4.4产品化维护项目 （SINYD_SW16004）
A13: 测试总结报告(版本v1.0)
A27: 沈阳新一代信息技术有限公司 研发中心 2016-4-7

Sheet 变更履历
A1: 模板变更履历
B3: 时间 | C3: 版本 | D3: 作者 | E3: 审核 | F3: 变更内容
B4: 2016-09-30 | C4: V1.0 | D4: 李秋香 | F4: 创建此文档

Sheet 概要
B2: 1.目的目标
B3: 目的： 1.规范编写测试用例模板、测试执行的流程 2.做好计划工作，对测试策略、工作量、人员安排、其他部门的依赖、测试环境等做好准备 3.根据计划，按时完成相应的工作，并记录实际完成时间 4.保证测试工作顺利有效的进行，从而更好的保证项目质量 5.根据计划和实际的对比情况，可以有效的对项目或测试阶段存在风险进行评估、处理 | J3: *模板颜色含义说明：
J4: 策划时填写
J5: 跟踪时填写
J6: 表格标题，不能修改
J7: 固定数据，不能修改
J8: 备注/说明等 (白色) ，策划、跟踪时都可填写
B9: 说明： 测试资产保留请参考对应研发项目的配置管理计划。 测试用例地址：http://192.168.1.206/svn/技术中心项目库\03_质量保障平台V4.4产品化\02_项目文档\04_测试。 缺陷存放地址：http://192.168.1.162:8080/redmine/projects/sw_-v4-4/issues/
B14: 2.日程安排 | D14: 工作量单位:人天
B15: 测试阶段 | C15: 计划开始日期 | D15: 计划结束日期 | E15: 计划工作量 | F15: 实际开始日期 | G15: 实际结束日期 | H15: 实际工作量 | I15: 参加人员
B16: 需求理解 | C16: 2016-04-20 | D16: 2016-09-29 | E16: 2 | F16: 2016-04-28 | G16: 2016-08-17 | H16: 1.5 | I16: 测试组
B17: 测试设计 | C17: 2016-04-20 | D17: 2016-09-30 | E17: 7 | F17: 2016-04-28 | G17: 2016-08-24 | H17: 7 | I17: 测试组
B18: 环境部署 | C18: 2016-04-20 | D18: 2016-09-30 | E18: 2 | F18: 2016-04-28 | G18: 2016-09-29 | H18: 3 | I18: 李秋香、王金铭
B19: 第一轮测试周期 | C19: 2016-04-28 | D19: 2016-09-30 | E19: 25 | F19: 2016-05-04 | G19: 2016-09-29 | H19: 26.5 | I19: 测试组
B20: 会议及其他沟通 | C20: 2016-04-20 | D20: 2016-09-30 | E20: 1 | F20: 2016-04-28 | G20: 2016-09-29 | H20: 1 | I20: 测试组
B21: 测试总结 | C21: 2016-09-30 | D21: 2016-10-08 | E21: 2 | F21: 2016-09-30 | G21: 2016-10-08 | H21: 1 | I21: 李秋香
B22: 合计 | E22: =SUM(E16:E21) -> 39 | H22: =SUM(H16:H21) -> 40
B24: 3.人员安排及工作量 | D24: 工作量单位:人天 | E24: 每人天= | F24: 7.5
B25: 角色 | C25: 负责人 | D25: 主要任务 | I25: 备注
B26: Tester Leader | C26: 李秋香 | D26: 测试计划编写、需求评审、测试人员任务创建与分配、测试用例编写及评审、测试用例执行、提交缺陷任务并验证、编写测试总结报告。
B27: Tester1 | C27: 孙雪晶 | D27: 测试用例编写及评审、测试用例执行、提交缺陷任务并验证
B29: 人员 | C29: 计划投入日期 | D29: 计划脱离日期 | E29: 计划工作量 | F29: 实际投入日期 | G29: 实际脱离日期 | H29: 实际工作量 | I29: 备注
B30: =C26 -> 李秋香 | C30: 2016-04-11 | D30: 2016-10-08 | E30: 29 | F30: 2016-04-28 | G30: 2016-10-08 | H30: 29
B31: =C27 -> 孙雪晶 | C31: 2016-04-11 | D31: 2016-09-30 | E31: 10 | F31: 2016-05-04 | G31: 2016-09-27 | H31: 11
B32: 合计 | E32: =SUM(E30:E31) -> 39 | H32: =SUM(H30:H31) -> 40

Sheet 测试质量
B1: 测试质量
C4: 提交bug总数 | E4: 98
C5: 有效bug总数 | E5: 93
C6: bug有效率 | E6: =E5/E4 -> 0.9489795918
C8: 关闭bug数 | E8: 94
C9: 遗留bug数 | E9: 4
C10: 遗留bug比率 | E10: =E9/E5 -> 0.04301075269
C12: 测试用例数 | E12: 335
C14: 按问题等级统计数据
C15: 等级 | D15: bug数 | E15: 比例
C16: 紧急 | D16: 1 | E16: =IF($D$21>0,D16/$D$21,"") -> 0.01075268817
C17: 高级 | D17: 26 | E17: 0.2795698925
C18: 中级 | D18: 40 | E18: 0.4301075269
C19: 低级 | D19: 20 | E19: 0.2150537634
C20: 建议 | D20: 6 | E20: 0.06451612903
C21: 合计 | D21: =SUM(D16:D20) -> 93 | E21: 1
C22: 原因分析： 此项目中级bug占比较大，主要是一些次级功能不满足等情况，由于涉及到后台分析的bug一般都为高级bug，所以高级问题也比较多，总体bug分布正常。
C29: 按问题类型统计数据
C30: 类型 | D30: bug数 | E30: 比例
C31: 功能 | D31: 83 | E31: =IF($D$36>0,D31/$D$36,"") -> 0.8924731183
C32: 性能 | D32: 0 | E32: 0
C33: 规范性 | D33: 10 | E33: 0.1075268817
C34: 安全性 | D34: 0 | E34: 0
C35: 需求问题 | D35: 0 | E35: 0
C36: 合计 | D36: =SUM(D31:D35) -> 93 | E36: 1
C37: 原因分析： 此项目性能基本未测试；安全性测试主要针对系统访问权限，无问题；bug主要存在功能与规范性类型中，规范性问题主要是新增页面字段以及图表显示不规范，本次测试的重点还是针对功能进行全面测试，所以BUG相对集中
C44: 按系统模块统计数据
C45: 系统模块 | D45: bug数 | E45: 比例
C46: 系统整体 | D46: 4 | E46: =IF($D$57>0,D46/$D$57,"") -> 0.04301075269
C47: 业务端-系统管理 | D47: 2 | E47: 0.02150537634
C48: 业务端_水泥混凝土生产 | D48: 8 | E48: 0.08602150538
C49: 业务端-沥青混合料生产 | D49: 23 | E49: 0.247311828
C50: 业务端-改性沥青生产 | D50: 1 | E50: 0.01075268817
C51: 业务端-设备管理 | D51: 4 | E51: 0.04301075269
C52: 业务端-采购管理 | D52: 1
C53: 监控端-水泥混凝土监控 | D53: 14 | E53: =IF($D$57>0,D53/$D$57,"") -> 0.1505376344
C54: 监控端-沥青混合料监控 | D54: 29 | E54: =IF($D$57>0,D54/$D$57,"") -> 0.311827957
C55: 监控端-综合监控 | D55: 2 | E55: =IF($D$57>0,D55/$D$57,"") -> 0.02150537634
C56: 沥青后台分析 | D56: 5 | E56: =IF($D$57>0,D56/$D$57,"") -> 0.05376344086
C57: 合计 | D57: =SUM(D46:D56) -> 93 | E57: =IF($D$57>0,D57/$D$57,"") -> 1
C58: 原因分析： 本次主要修改的是沥青多数据源融合以及沥青生产预警相关的模块，所以bug大多数集中在此模块，水泥生产相关的bug主要是数据对比功能的修改和大数据过程曲线分析部分，其他模块主要是测试代码混淆时随机测试发现的问题。
C65: 按测试版本统计数据
C66: 版本号 | D66: 提交bug数 | E66: 比例 | F66: 关闭bug数 | G66: 比例
C67: 4.4.8.a | D67: 15 | E67: =IF($D$95>0,D67/$D$95,"") -> 0.1612903226 | F67: 1 | G67: =IF($F$95>0,F67/$F$95,"") -> 0.01123595506
C68: 4.4.8.b | D68: 7 | E68: 0.0752688172 | F68: 14 | G68: 0.1573033708
C69: 4.4.8.c | D69: 1 | E69: 0.01075268817 | F69: 7 | G69: 0.07865168539
C70: 4.4.8.d | D70: 1 | E70: 0.01075268817 | F70: 0 | G70: 0
C71: 4.4.8.e | D71: 4 | E71: 0.04301075269 | F71: 2 | G71: 0.02247191011
C72: 4.4.8.f | D72: 1 | E72: 0.01075268817 | F72: 4 | G72: 0.04494382022
C73: 4.4.8.g | D73: 0 | E73: 0 | F73: 1 | G73: 0.01123595506
C74: 4.4.8.h | D74: 2 | E74: 0.02150537634 | F74: 0 | G74: 0
C75: 4.4.8.i | D75: 6 | E75: 0.06451612903 | F75: 2 | G75: 0.02247191011
C76: 4.4.8.j | D76: 0 | E76: 0 | F76: 5 | G76: 0.05617977528
C77: 4.4.8.k | D77: 0 | E77: 0 | F77: 0 | G77: 0
C78: 4.4.8.l | D78: 4 | E78: 0.04301075269 | F78: 3 | G78: 0.03370786517
C79: 4.4.9.a | D79: 2 | E79: 0.02150537634 | F79: 3 | G79: 0.03370786517
C80: 4.4.9.b | D80: 0 | E80: 0 | F80: 1 | G80: 0.01123595506
C81: 4.4.9.c | D81: 6 | E81: 0.06451612903 | F81: 1 | G81: 0.01123595506
C82: 4.4.9.d | D82: 1 | E82: 0.01075268817 | F82: 3 | G82: 0.03370786517
C83: 4.4.9.e | D83: 2 | E83: 0.02150537634 | F83: 4 | G83: 0.04494382022
C84: 4.4.9.f | D84: 10 | E84: 0.1075268817 | F84: 3 | G84: 0.03370786517
C85: 4.4.9.g | D85: 0 | E85: 0 | F85: 1 | G85: 0.01123595506
C86: 4.4.10.a | D86: 8 | E86: 0.08602150538 | F86: 4 | G86: 0.04494382022
C87: 4.4.10.b | D87: 2 | E87: 0.02150537634 | F87: 6 | G87: 0.06741573034
C88: 4.4.10.c | D88: 0 | E88: 0 | F88: 3 | G88: 0.03370786517
C89: 4.4.10.d | D89: 9 | E89: 0.09677419355 | F89: 0 | G89: 0
C90: 4.4.10.e | D90: 3 | E90: 0.03225806452 | F90: 10 | G90: 0.1123595506
C91: 4.4.10.f | D91: 2 | E91: 0.02150537634 | F91: 3 | G91: 0.03370786517
C92: 4.4.10.g | D92: 4 | E92: 0.04301075269 | F92: 1 | G92: 0.01123595506
C93: 4.4.10.h | D93: 0 | E93: 0 | F93: 5 | G93: 0.05617977528
C94: 4.4.10.i | D94: 3 | E94: 0.03225806452 | F94: 2 | G94: 0.02247191011
C95: 合计 | D95: =SUM(D67:D94) -> 93 | E95: 1 | F95: =SUM(F67:F94) -> 89 | G95: 1
C96: 原因分析： 此项目主要是4.4产品化的维护项目，4.4.8.x版本有新功能发布，所以前两个版本提交的bug较多，4.4.8.i版本增加数据对比功能，4.4.9.f版本修改了水泥和沥青的后台分析功能，4.4.10.a版本为第一个代码混淆版本，4.4.10.d版本新增了沥青级配超限指标，修改了后台分析，所以bug也较多；每次提交bug较多的下个版本通常为bug验证版本，所以关闭的bug较多；由于此项目为维护项目，所以bug版本分布不均，属正常现象。

Sheet 测试工作量
B1: 测试工作量
B2: 1、总表
B3: 测试人员 | C3: 测试设计 | H3: 测试执行
C4: 用例设计个数(条) | D4: 用例设计工作量 (小时) | F4: 用例设计效率 (用例数/人日) | H4: 提交Bug个数(个) | I4: 用例执行个数(条) | J4: 测试执行工作量 (小时) | L4: BUG提交效率 (BUG/人日) | N4: 用例执行效率 (用例数/人日)
B5: 李秋香 | C5: 218 | D5: 45.5 | F5: =ROUND(C5/(D5/7.5),1) -> 35.9 | H5: 59 | I5: 218 | J5: 135.5 | L5: =ROUND(H5/(J5/8),1) -> 3.5 | N5: =ROUND(I5/(J5/8),1) -> 12.9
B6: 孙雪晶 | C6: 127 | D6: 14 | F6: =ROUND(C6/(D6/7.5),1) -> 68 | H6: 34 | I6: 127 | J6: 71.6 | L6: =ROUND(H6/(J6/8),1) -> 3.8 | N6: =ROUND(I6/(J6/8),1) -> 14.2
B7: 合计 | C7: =SUM(C5:C6) -> 345 | D7: =SUM(D5:E6) -> 59.5 | F7: =ROUND(C7/(D7/8),1) -> 46.4 | H7: =SUM(H5:H6) -> 93 | I7: =SUM(I5:I6) -> 345 | J7: =SUM(J5:K6) -> 207.1 | L7: =ROUND(H7/(J7/8),1) -> 3.6 | N7: =ROUND(I7/(J7/8),1) -> 13.3
B9: 2、Bug提交按级别统计
B10: 测试人员 | D10: 提交Bug个数及比例(个)
D11: 紧急 | F11: 高 | H11: 中 | J11: 低 | L11: 建议 | N11: 小计
D12: 个数 | E12: 比例 | F12: 个数 | G12: 比例 | H12: 个数 | I12: 比例 | J12: 个数 | K12: 比例 | L12: 个数 | M12: 比例 | N12: 个数 | O12: 比例
B13: =B5 -> 李秋香 | D13: 1 | E13: =IF($D$15=0,0,D13/$D$15) -> 1 | F13: 17 | G13: =IF($F$15=0,0,F13/$F$15) -> 0.6538461538 | H13: 30 | I13: =IF($H$15=0,0,H13/$H$15) -> 0.75 | J13: 9 | K13: =IF($J$15=0,0,J13/$J$15) -> 0.45 | L13: 2 | M13: =IF($L$15=0,0,L13/$L$15) -> 0.3333333333 | N13: =D13+F13+H13+J13+L13 -> 59 | O13: =IF($N$15=0,0,N13/$N$15) -> 0.6344086022
B14: =B6 -> 孙雪晶 | D14: 0 | E14: =IF($D$15=0,0,D14/$D$15) -> 0 | F14: 9 | G14: =IF($F$15=0,0,F14/$F$15) -> 0.3461538462 | H14: 10 | I14: =IF($H$15=0,0,H14/$H$15) -> 0.25 | J14: 11 | K14: =IF($J$15=0,0,J14/$J$15) -> 0.55 | L14: 4 | M14: =IF($L$15=0,0,L14/$L$15) -> 0.6666666667 | N14: =D14+F14+H14+J14+L14 -> 34 | O14: =IF($N$15=0,0,N14/$N$15) -> 0.3655913978
B15: 项目组汇总 | D15: =SUM(D13:D14) -> 1 | E15: =IF($D$15=0,0,D15/$D$15) -> 1 | F15: =SUM(F13:F14) -> 26 | G15: =IF($F$15=0,0,F15/$F$15) -> 1 | H15: =SUM(H13:H14) -> 40 | I15: =IF($H$15=0,0,H15/$H$15) -> 1 | J15: =SUM(J13:J14) -> 20 | K15: =IF($J$15=0,0,J15/$J$15) -> 1 | L15: =SUM(L13:L14) -> 6 | M15: =IF($L$15=0,0,L15/$L$15) -> 1 | N15: =SUM(N13:N14) -> 93 | O15: =IF($N$15=0,0,N15/$N$15) -> 1
B18: 3.工作量状况总体总结
B19: 总体总结（对上述工作量数据进行总体说明或分析）
B20: 1.本测试从需求分析阶段开始，即对需求进行学习后进行测试，因为没有准确的需求以及设计文档，在测试中反复沟通的时间花费较长； 2.由于测试用例很多都是基于4.4产品化项目已有用例，新增用例数较少； 3.由于测试人员分工不同，所以用例执行效率与bug的提交效率均不相同；

Sheet 遗留问题分析表
B1: 遗留问题分析表
B3: 序号 | C3: 问题描述 | D3: 等级 | E3: 时机 | F3: 频率 | G3: 遗留原因 | H3: 遗留确认人 | I3: 遗留确认日期 | J3: 遗留风险 | K3: 后继措施 | L3: 遗留问题原因总体分析
B4: 11001 | C4: 【业务端-水泥混凝土生产】sys_upload_track表未按设备区分，当序号比当前上传大时， 导致不上传新的数据 | D4: 建议 | E4: 首次出现 | F4: 操作即出现 | G4: sys_upload_track目前仅供大数据上传使用，因现场多为单一设备且目前试点已接近尾声，又因后续会将使用新传输框架，该问题出现几率较小，赞不修改此问题 | H4: 王金茗 | I4: 2016-09-30 | J4: 一般 | K4: 后续解决 | L4: 遗留问题级别较低，有些是页面美观性问题，功能缺陷基本可以通过其他方式避免，可以遗留，在以后的项目里进行修改。
B5: 9531 | C5: 【业务端-改性沥青生产】导出功能未按查询结果导出而是按查询条件导出（沥青混合料也有相同问题） | D5: 低级 | E5: 首次出现 | F5: 操作即出现 | H5: 王金茗 | I5: 2016-09-30 | J5: 轻微 | K5: 后续解决
B6: 9364 | C6: 【监控端-生产汇总】设置料仓为水泥仓和石粉仓设置为水泥，回收石粉仓设置为回收石粉，三个仓都插入数据，生产汇总页面，总量配比验证详情统计错误 | D6: 中级 | E6: 首次出现 | F6: 操作即出现 | G6: 此问题，已和业务达成一致，暂不做修改 | H6: 刘长波 | I6: 2016-09-30 | J6: 一般 | K6: 后续解决
B7: 8853 | C7: 【生产施工-沥青混合料生产】预警指标设置页面行间距不一致，建议页面行间距保持一致、美观 | D7: 建议 | E7: 首次出现 | F7: 操作即出现 | H7: 王金茗 | I7: 2016-09-30 | J7: 轻微 | K7: 后续解决

Sheet 经验和教训
B1: 经验 | D1: *推荐给组织的好的经验或做法
B2: 序号 | C2: 内容描述 | D2: 影响 | E2: 特定环境及其它说明
B3: 1 | C3: 测试过程从需求明确时开始进行 | D3: 更有效的提高了工作效率，有利于测试人员更快更准确地理解并掌握需求的内容 | E3: 需求暂时确定时测试人员学习并参加需求的评审会议
B4: 2 | C4: 在其他项目基础上修改用例，只增加新功能部分，其他相关模块可以参考4.4项目 | D4: 可以节省用例编写的时间
B5: 3 | C5: 与需求及开发确认的细节问题记录到问题跟踪表 | D5: 方便以后查找对应
B6: 4
B7: 5
B8: 教训 | D8: *分享给组织的失败经历教训等
B9: 序号 | C9: 内容描述 | D9: 影响 | E9: 特定环境及其它说明
B10: 1 | C10: 需求不够细致，相关文档不全 | D10: 导致测试浪费大量的时间去确认具体细节
B11: 2 | C11: 测试环境较复杂，测试大数据时历史数据有影响 | D11: 多次清库，导致历史数据较少，有些历史数据问题无法被发现

Sheet 总体总结
B1: 总体总结
B3: 项目名称（项目编号） | E3: =封面!A11 -> 质量保障平台v4.4产品化维护项目 （SINYD_SW16004）
B4: 项目经理 | C4: 王金茗 | E4: 测试组长 | F4: 李秋香
B5: 参加测试人员 | C5: 李秋香、孙雪晶
B6: 计划开始时间 | C6: 2016-04-20 | D6: 计划结束时间 | E6: 2016-09-30 | F6: 计划工作量 | G6: 39
B7: 实际开始时间 | C7: 2016-04-28 | D7: 实际结束时间 | E7: 2016-10-08 | F7: 实际工作量 | G7: 40
B8: 进度偏差 | C8: =((E7-C7)-(E6-C6))/(E6-C6) -> 0 | E8: 工作量偏差 | F8: =(G7-G6)/G6 -> 0.02564102564
B9: 发布内容： 本次发布版本号：5.0.0.0 程序存放地址：http://192.168.1.206/svn/技术中心项目库/03_质量保障平台V4.4产品化/02_项目文档/05_发布/02_正式版本/5.0.0.0 部署说明文件存放地址：
B12: 软件综合评价： 质量保障平台4.4产品化维护项目在进行一轮系统测试后，系统基本实现需求中所要求的各功能且可以正常运行，性能方面过程数据分析传输速率有待加强。由于测试中使用的拌和站模拟软件，许多现场的情况无法模拟，所以开发的软件产品仍存在一定的潜在风险。
B17: 测试工作评价： 由于测试工作需要基于明确的需求以及开发环节的顺利进行，所以设计文档如果不完善必须由测试人员进行沟通、确认，所以沟通成本比预计的要多。 本次测试基本符合计划，进度和工作量基本无偏差。 总体来说： 在与各部门协调、协作之下完成了本项目测试工作产品基本满足需求，但是性能方面有一定的风险；项目中的沟通成本较大，需要在后续项目进行合理的控制。
B24: 项目经理：王金茗
B25: 开发组长：王金茗
B26: 测试组长：李秋香
B27: 测试成员：孙雪晶
